bitfinex/quotes_ETHUSD_20260308
["timestamp","ask_amount","ask_price","bid_price","bid_amount"]
[1773012088565,0.6257578,1946.1,1945.1,0.59950675]
[1773012088766,1.91064241,1945.7,1945.2,0.0011]
[1773012089163,0.6257578,1945.6,1945.2,0.0011]
[1773012090876,1.2850167,1945.5,1945.2,0.0011]
[1773012092326,1.2850167,1945.5,1945.3,0.0011]
[1773012092802,5.13962842,1945.7,1945.4,0.0011]
[1773012092803,1.28488461,1945.7,1945.4,0.0011]
[1773012093909,2.66588461,1945.7,1945.4,0.0011]
[1773012095425,3.26264882,1945.7,1945.4,0.0011]
[1773012096734,3.26264882,1945.7,1945.2,0.0011]
[1773012096735,0.59676421,1945.5,1945.2,0.0011]
[1773012096901,3.24315794,1945.6,1945.2,0.0011]
[1773012097096,1.97976421,1945.6,1945.2,0.0011]
[1773012097723,1.2850167,1945.5,1945.2,0.0011]
[1773012101021,3.8950167,1945.5,1945.2,0.0011]
[1773012101639,4.49178091,1945.5,1945.2,0.0011]
[1773012101830,1.88178091,1945.5,1945.2,0.0011]
[1773012102354,0.59676421,1945.4,1945.2,0.0011]
[1773012103545,2.6730167,1945.5,1945.0,0.60753782]
[1773012103710,3.26978091,1945.5,1945.0,0.60753782]
[1773012104335,2.6730167,1945.5,1945.0,0.00263886]
[1773012104678,0.59676421,1945.4,1945.0,0.00263886]
[1773012105721,0.59676421,1945.4,1945.3,0.0011]
[1773012106255,0.59676421,1945.4,1945.2,0.0011]
[1773012106445,2.6730167,1945.5,1945.2,0.0011]
[1773012106446,1.2850167,1945.5,1945.2,0.0011]
[1773012110881,1.88178091,1945.5,1945.2,0.0011]
[1773012114795,0.59676421,1945.4,1944.9,0.48519663]
[1773012114952,1.2850167,1945.5,1944.9,0.48519663]
[1773012115305,1.2850167,1945.5,1945.0,0.48272765]
[1773012116080,1.88178091,1945.5,1945.0,0.48272765]
[1773012117092,1.88178091,1945.5,1945.0,1.76807353]
[1773012117253,5.1398758,1945.6,1945.1,0.497785]
[1773012117575,1.28495065,1945.6,1945.1,0.498885]
[1773012117787,0.001,1945.4,1945.1,0.498885]
[1773012120272,0.00153886,1946.0,1945.1,0.0011]
[1773012120481,0.00153886,1946.0,1945.3,0.493574]
[1773012120781,0.59676421,1945.9,1945.3,0.493574]
[1773012121450,0.00153886,1946.0,1945.3,0.493574]
[1773012121959,0.001,1946.1,1945.3,0.5302293]
[1773012122771,0.001,1946.1,1945.5,0.52877771]
[1773012122970,0.34079313,1946.3,1945.4,1.28508275]
[1773012122971,0.34079313,1946.3,1945.7,0.52877761]
[1773012124051,0.34079313,1946.3,1945.4,1.28508275]
[1773012124052,1.05744593,1946.2,1945.5,0.52731305]
[1773012124247,0.57862649,1946.1,1945.3,1.81240846]
[1773012124447,0.34079313,1946.3,1945.4,0.52731305]
[1773012124758,0.57862649,1946.2,1945.6,0.52731305]
[1773012124957,0.29895899,1946.3,1945.6,0.52731305]
[1773012125155,1.8628522,1946.7,1945.8,0.52582203]
[1773012126185,0.57862649,1946.6,1945.8,0.52582203]
[1773012127081,1.86296811,1946.6,1945.9,1.79363931]
[1773012127263,1.86292138,1946.6,1946.0,0.50888676]
[1773012128563,0.57862649,1946.6,1946.0,0.50888676]
[1773012128764,1.39353886,1947.0,1946.0,0.50888676]
[1773012128965,0.63744381,1946.9,1946.0,0.50888676]
[1773012129287,0.00153886,1947.0,1946.3,0.50587484]
[1773012129970,0.63898267,1947.0,1946.3,0.50587484]
[1773012130166,0.001,1946.5,1946.3,0.50587484]
[1773012131102,0.001,1946.5,1946.4,1.78729725]
[1773012131269,0.63898267,1947.0,1946.4,1.78729725]
[1773012131597,1.92301586,1947.0,1946.4,1.78729725]
[1773012131989,0.63744381,1946.9,1946.2,4.18675704]
[1773012132185,0.63744381,1946.9,1945.9,3.68657072]
[1773012132975,0.63744381,1946.9,1945.9,4.18548638]
[1773012133299,0.63744381,1946.9,1946.0,0.49891566]
[1773012133300,1.28415861,1946.8,1946.0,0.49891566]
[1773012133598,1.92158666,1946.9,1946.0,0.49891566]
[1773012134172,0.63744381,1946.9,1946.0,0.49891566]
[1773012134405,1.28561903,1947.0,1946.0,0.49891566]
[1773012134777,1.92306284,1947.0,1946.0,0.49891566]
[1773012135176,0.00153886,1947.0,1946.0,0.49891566]
[1773012135500,0.00153886,1947.0,1946.1,1.28462052]
[1773012135684,0.00153886,1947.0,1946.2,0.49593884]
[1773012135885,0.00153886,1947.0,1946.4,0.49593884]
[1773012137878,0.00153886,1947.0,1946.5,1.77585191]
[1773012139206,0.00153886,1947.0,1946.3,6.38642614]
[1773012139207,0.63898267,1947.0,1946.3,3.02346355]
[1773012139406,0.63898267,1947.0,1946.3,3.02348009]
[1773012140321,1.92153647,1946.9,1946.3,3.02348009]
[1773012141193,0.63744381,1946.9,1946.3,3.02348009]
[1773012141784,0.00153886,1947.0,1946.4,0.48707786]
[1773012142479,0.00153886,1947.0,1946.6,0.48561108]
[1773012143398,0.002,1946.9,1946.6,0.48561108]
[1773012144285,1.2858585,1947.3,1946.6,0.48561108]
[1773012144286,0.002,1947.3,1946.6,0.48561108]
[1773012144483,0.002,1947.2,1946.7,1.76691064]
[1773012145895,0.002,1947.2,1946.8,0.4812278]
[1773012146793,0.002,1947.2,1946.9,1.3354231]
[1773012147386,0.002,1947.3,1947.0,0.4784816]
[1773012147582,0.002,1947.6,1947.0,0.4784816]
[1773012148689,1.92235946,1948.0,1947.0,0.4750314]
[1773012148923,1.92093462,1947.9,1947.2,0.45111558]
[1773012149125,1.92093462,1947.9,1947.3,1.251]
[1773012150316,1.92093462,1947.9,1947.3,1.70960604]
[1773012150515,1.28349081,1947.9,1947.3,1.70960604]
[1773012150717,0.63744381,1947.8,1947.1,1.7425668]
[1773012150925,0.63744381,1947.8,1947.3,1.252]
[1773012151091,1.28356523,1947.7,1947.3,1.252]
[1773012151292,1.92100904,1947.7,1947.3,2.53582731]
[1773012151920,5.13516317,1948.0,1947.4,0.45713802]
[1773012151921,0.63898267,1948.0,1947.4,0.45713802]
[1773012152427,0.63744381,1947.9,1947.2,1.73955492]
[1773012152596,0.63744381,1947.9,1947.2,2.53588206]
[1773012152915,0.63744381,1947.9,1947.2,1.252]
[1773012153619,0.60516548,1947.7,1947.0,1.28398596]
[1773012155297,0.60516548,1947.9,1947.1,0.45129441]
[1773012155624,0.60516548,1947.9,1947.3,0.45129441]
[1773012155791,1.88860029,1947.9,1947.3,0.45129441]
[1773012157606,0.002,1947.6,1947.4,1.28376296]
[1773012157830,0.60516548,1947.5,1947.1,1.252]
[1773012158129,0.60516548,1947.5,1947.1,0.001]
[1773012158315,0.60516548,1947.5,1947.0,0.001]
[1773012160025,0.60516548,1947.3,1947.0,0.001]
[1773012160402,5.13505186,1947.5,1947.0,0.001]
[1773012160403,1.88891137,1947.5,1947.0,0.001]
[1773012161002,1.88886766,1947.5,1947.0,0.001]
[1773012161409,0.60516548,1947.4,1947.0,0.001]
[1773012162819,0.60516548,1947.3,1947.0,0.001]
[1773012165809,1.88900693,1947.3,1947.0,0.001]
[1773012166009,1.8889976,1947.3,1947.0,0.001]
[1773012166204,0.60516548,1947.5,1947.0,0.001]
[1773012169845,1.28376296,1947.4,1947.0,0.001]
[1773012170156,0.002,1947.6,1947.0,0.40789329]
[1773012171452,0.002,1947.6,1947.1,0.001]
[1773012171654,0.002,1947.6,1947.1,0.40648098]
[1773012171815,0.002,1947.6,1947.2,1.6893758]
[1773012172144,0.002,1948.1,1947.2,1.6893758]
[1773012172145,0.60516548,1948.3,1947.3,0.58573419]
[1773012172344,1.89040763,1948.2,1947.3,0.58573419]
[1773012172549,0.60516548,1948.1,1947.3,0.58573419]
[1773012173249,0.002,1948.2,1947.3,0.58573419]
[1773012173250,1.28523634,1948.2,1947.3,0.58573419]
[1773012174253,0.002,1948.2,1947.5,0.58573419]
[1773012174955,0.60716548,1948.2,1947.5,0.58573419]
[1773012175581,0.002,1948.2,1947.5,0.58573419]
[1773012176246,0.002,1948.2,1947.6,1.86936532]
[1773012178155,0.60716548,1948.2,1947.6,1.86936532]
[1773012179955,0.60716548,1948.2,1947.7,0.58573419]
[1773012180431,0.002,1948.2,1947.9,0.58573419]
[1773012181163,10.37,1948.8,1947.9,0.58573419]
[1773012181164,0.60516548,1948.8,1947.9,0.58573419]
[1773012181461,1.88945471,1949.0,1947.9,0.58573419]
[1773012182247,0.60516548,1948.9,1947.9,0.58573419]
[1773012182457,0.60516548,1948.7,1948.0,1.86910174]
[1773012182768,1.28427122,1949.0,1948.1,0.58573419]
[1773012183662,0.002,1948.2,1948.1,0.58573419]
[1773012183864,0.00153886,1949.0,1948.1,0.56455907]
[1773012184038,3.92193365,1949.9,1948.2,3.93168309]
[1773012184238,1.89329685,1949.9,1948.8,0.56455907]
[1773012184568,1.89329685,1949.9,1949.0,1.84722197]
[1773012184569,1.89339548,1949.7,1949.0,1.84722197]
[1773012185245,0.34593549,1949.5,1949.1,0.56455907]
[1773012185567,0.34593549,1949.5,1948.6,0.56455907]
[1773012185739,0.61114693,1949.4,1948.7,1.81255907]
[1773012186868,0.5956248,1949.2,1948.6,1.28293409]
[1773012187164,0.5956248,1949.2,1948.4,2.53110306]
[1773012187857,0.5956248,1949.2,1948.3,0.61753598]
[1773012188033,0.5956248,1949.2,1948.3,1.90070528]
[1773012188233,0.94156029,1949.1,1948.3,1.90070528]
[1773012188634,1.28270908,1949.0,1948.3,1.90070528]
[1773012188836,1.87833388,1949.0,1948.3,1.90070528]
[1773012189149,1.62862634,1949.1,1948.4,0.61753598]
[1773012191166,1.62862634,1949.1,1948.5,1.28303823]
[1773012191466,1.62862634,1949.1,1948.5,1.90057421]
[1773012192668,1.5252628,1949.1,1948.5,1.90057421]
[1773012192871,1.28213901,1949.9,1948.6,1.248]
[1773012193167,1.28362722,1950.0,1949.1,0.61753598]
[1773012193345,0.5956248,1949.9,1949.1,1.86553598]
[1773012193662,0.5956248,1949.9,1949.2,0.61753598]
[1773012193968,0.00153886,1950.0,1949.2,0.61753598]
[1773012195451,0.00153886,1950.0,1949.4,0.61753598]
[1773012195857,0.002,1949.5,1949.4,0.61753598]
[1773012196168,0.00153886,1950.0,1949.3,1.28251167]
[1773012196368,5.7427813,1951.9,1949.3,1.28251167]
[1773012196369,0.5956248,1950.7,1949.6,0.61753598]
[1773012196543,0.5956248,1950.7,1949.8,0.61753598]
[1773012197567,1.28159122,1950.8,1950.0,0.61753598]
[1773012197771,5.46719071,1950.9,1950.0,0.61753598]
[1773012197772,0.3410886,1950.9,1950.0,0.61753598]
[1773012197978,1.28073308,1952.1,1950.9,0.61753598]
[1773012198275,2.68518138,1952.4,1951.1,0.61753598]
[1773012198594,1.28230055,1952.0,1951.2,1.84453598]
[1773012198889,1.28354455,1952.3,1951.3,0.61753598]
[1773012199098,1.28354455,1952.3,1951.2,1.227]
[1773012199099,0.003,1952.3,1951.5,0.61753598]
[1773012199294,1.28354938,1952.3,1951.5,0.61753598]
[1773012199592,1.28355562,1952.3,1951.5,0.61753598]
[1773012199894,0.003,1952.3,1951.7,0.61753598]
[1773012200098,0.152128,1952.7,1951.8,0.61753598]
[1773012200657,0.54875046,1952.8,1952.0,0.61753598]
[1773012200879,0.5956248,1952.7,1951.7,0.61753598]
[1773012201262,0.5956248,1952.7,1951.4,1.89860999]
[1773012201462,0.5956248,1952.7,1951.5,0.61753598]
[1773012201662,1.28034415,1952.6,1951.5,0.61753598]
[1773012201875,1.87596895,1952.6,1951.5,1.89860123]
[1773012202185,0.5956248,1952.5,1951.5,1.89860123]
[1773012203992,1.28047531,1952.4,1951.5,1.89860123]
[1773012204290,0.5956248,1952.3,1951.2,3.0807548]
[1773012204662,0.5956248,1952.3,1951.2,1.8987548]
[1773012204866,0.5956248,1952.3,1951.2,1.89879351]
[1773012205064,0.5956248,1952.3,1951.3,0.61753598]
[1773012205262,1.28047531,1952.4,1951.3,0.61753598]
[1773012205964,5.71752604,1952.5,1951.4,1.89866747]
[1773012206166,5.71752604,1952.5,1951.5,0.61753598]
[1773012207084,5.12190124,1952.5,1951.5,0.61753598]
[1773012207395,1.28027858,1952.7,1951.7,0.61753598]
[1773012208172,5.66986481,1952.8,1951.9,0.61753598]
[1773012208173,1.82896899,1952.8,1951.9,0.61753598]
[1773012208601,0.002,1952.4,1951.9,0.61753598]
[1773012208776,0.002,1952.4,1951.8,1.28086894]
[1773012208989,0.002,1952.4,1951.6,0.61753598]
[1773012209285,0.002,1952.4,1951.7,0.61753598]
[1773012209972,0.002,1952.4,1951.6,1.28094755]
[1773012210185,0.5976248,1952.4,1951.5,1.28102944]
[1773012210381,0.5976248,1952.4,1951.4,1.8986181]
[1773012210382,1.8761657,1952.3,1951.4,1.8986181]
[1773012210795,1.8761657,1952.3,1951.5,0.61753598]
[1773012210796,1.2805409,1952.3,1951.5,0.61753598]
[1773012211301,1.2805409,1952.3,1951.4,1.28108212]
[1773012211302,0.5956248,1952.2,1951.4,1.28108212]
[1773012211512,0.5956248,1952.2,1951.3,2.49014706]
[1773012212320,1.28086894,1951.8,1951.3,0.001]
[1773012212480,0.5956248,1951.7,1951.0,0.00253886]
[1773012213502,0.5956248,1951.7,1950.6,1.89913044]
[1773012214808,1.2810002,1951.6,1950.6,1.89913044]
[1773012215012,0.57042578,1951.5,1950.6,0.61753598]
[1773012215308,0.57042578,1951.3,1950.4,1.84431452]
[1773012215484,1.85142598,1951.6,1950.5,0.56257308]
[1773012215691,0.57042578,1951.5,1950.5,0.56257308]
[1773012215922,1.2810002,1951.6,1950.5,0.56257308]
[1773012216326,1.85142598,1951.6,1950.5,0.56257308]
[1773012216608,0.57042578,1951.5,1950.5,0.56257308]
[1773012216784,1.28113149,1951.4,1950.6,1.28165692]
[1773012216984,3.96504778,1951.9,1950.7,0.56257308]
[1773012218395,3.96499124,1951.9,1950.7,0.56257308]
[1773012218594,1.28231979,1952.0,1950.7,0.56257308]
[1773012218797,0.00153886,1952.0,1951.1,0.56257308]
[1773012218984,0.00153886,1952.0,1951.3,0.56257308]
[1773012220313,0.00153886,1952.0,1951.1,0.56257308]
[1773012220885,0.00153886,1952.0,1951.2,1.28126281]
[1773012221108,0.00153886,1952.0,1951.3,0.56257308]
[1773012221308,0.002,1951.8,1951.3,0.56257308]
[1773012222322,0.002,1951.8,1951.2,1.28126281]
[1773012222622,0.002,1951.8,1951.2,1.84383589]
[1773012222920,0.002,1951.8,1951.1,1.28127595]
[1773012223217,0.57242578,1951.8,1951.0,2.50434125]
[1773012223618,0.002,1951.8,1951.1,0.56257308]
[1773012225224,0.002,1951.8,1951.2,1.28126281]
[1773012225597,0.002,1951.8,1951.3,0.56257308]
[1773012226318,1.28242811,1952.5,1951.5,0.56257308]
[1773012226524,1.28242811,1952.5,1951.7,0.56257308]
[1773012226690,0.002,1952.5,1951.7,0.56257308]
[1773012227092,0.002,1952.5,1951.8,1.28086894]
[1773012227326,0.002,1952.5,1951.8,1.84344202]
[1773012227525,0.002,1952.5,1951.9,0.56257308]
[1773012228806,0.002,1952.5,1952.0,0.56257308]
[1773012229009,1.28285179,1953.4,1952.6,0.56257308]
[1773012229209,0.003,1953.4,1952.7,1.84285166]
[1773012229536,0.002,1953.3,1952.8,0.56257308]
[1773012229837,0.003,1953.4,1952.8,0.56257308]
[1773012230005,0.05528931,1953.2,1952.9,1.79957308]
[1773012230207,0.003,1953.4,1952.9,0.56257308]
[1773012230541,0.002,1953.2,1952.6,3.08087413]
[1773012231034,0.003,1953.4,1952.7,0.56257308]
[1773012231035,0.002,1953.1,1952.7,0.56257308]
[1773012231232,0.57196464,1954.0,1953.0,0.56257308]
[1773012231436,0.57196464,1954.0,1953.0,1.80157308]
[1773012231637,0.57196464,1954.0,1953.0,0.56257308]
[1773012232523,0.57196464,1954.0,1952.9,3.08172055]
[1773012233104,0.57196464,1954.0,1953.0,0.56257308]
[1773012233346,1.27949229,1953.9,1953.0,1.84261238]
[1773012233649,0.57042578,1953.8,1952.9,1.28009956]
[1773012233804,0.57042578,1953.8,1952.7,0.56257308]
[1773012233805,0.57042578,1953.8,1952.7,2.52127522]
[1773012233806,0.57042578,1953.7,1952.7,2.52127522]
[1773012234006,0.57042578,1953.4,1952.7,1.241]
[1773012234812,0.57042578,1953.1,1952.1,0.56257308]
[1773012235032,0.57042578,1953.1,1952.0,0.00153886]
[1773012235338,0.57042578,1953.2,1952.2,1.28060649]
[1773012235738,0.57042578,1953.5,1952.3,0.56257308]
[1773012236811,0.57042578,1953.5,1952.2,1.28060649]
[1773012237210,0.57042578,1953.3,1952.2,1.28060649]
[1773012238035,1.2798198,1953.4,1952.3,0.56257308]
[1773012238411,0.57042578,1953.3,1952.3,0.56257308]
[1773012239638,1.27995084,1953.2,1952.4,1.28047531]
[1773012239940,1.27995084,1953.2,1952.4,1.84304839]
[1773012240834,7.74501639,1953.4,1952.5,0.56257308]
[1773012240835,5.11944931,1953.4,1952.5,0.56257308]
[1773012241027,1.2798198,1953.4,1952.5,0.56257308]
[1773012241442,0.57042578,1953.3,1952.4,2.52747531]
[1773012241748,1.2798198,1953.4,1952.5,0.56257308]
[1773012242043,0.57042578,1953.6,1952.7,0.56257308]
[1773012242239,1.27962327,1953.7,1952.7,0.56257308]
[1773012242441,1.27960736,1953.8,1952.7,0.56257308]
[1773012243445,1.27960736,1953.8,1952.9,0.58547717]
[1773012244253,5.12008142,1953.9,1953.1,0.58547717]
[1773012244457,1.87492325,1953.9,1952.9,1.28010787]
[1773012244639,0.59343096,1953.6,1952.4,1.86595248]
[1773012244867,2.55484179,1953.8,1952.5,0.58547717]
[1773012245345,1.28149229,1953.9,1952.5,0.58547717]
[1773012245521,1.28149229,1953.9,1952.7,0.58547717]
[1773012246240,0.59343096,1953.8,1952.7,0.58547717]
[1773012246440,1.27962327,1953.7,1952.8,1.28021302]
[1773012246648,1.27962327,1953.7,1952.9,0.56993308]
[1773012247381,3.88363595,1953.9,1952.9,0.56993308]
[1773012248265,3.88363595,1953.9,1953.0,0.56993308]
[1773012248923,0.002,1953.9,1953.1,1.84994946]
[1773012249118,1.28149834,1953.9,1953.2,0.56993308]
[1773012250050,0.57157143,1954.6,1953.2,0.56993308]
[1773012250554,0.57157143,1954.6,1953.3,0.56993308]
[1773012250952,1.27909951,1954.5,1953.5,0.56993308]
[1773012251166,1.27909951,1954.5,1953.2,0.56993308]
[1773012251167,0.002,1953.9,1953.2,0.56993308]
[1773012253059,0.002,1953.9,1953.0,1.28257416]
[1773012253361,0.57357143,1953.9,1953.0,0.00253886]
[1773012253864,0.57157143,1953.8,1953.0,0.00253886]
[1773012254065,3.19729369,1953.4,1952.7,0.001]
[1773012254452,0.57157143,1953.4,1952.7,0.001]
[1773012254760,0.57157143,1953.7,1952.8,0.56993308]
[1773012255135,1.27968877,1953.6,1952.8,0.56993308]
[1773012257555,1.8512602,1953.6,1952.8,0.56993308]
[1773012258152,1.8512602,1953.6,1952.7,1.2812698]
[1773012258359,0.57157143,1953.5,1952.7,1.28124199]
[1773012258665,0.57157143,1953.5,1952.7,0.001]
[1773012259141,1.2798198,1953.4,1952.7,0.001]
[1773012259888,0.57157143,1953.3,1952.7,0.001]
[1773012261591,1.27995084,1953.2,1952.7,0.001]
[1773012262471,1.85152227,1953.2,1952.7,0.001]
[1773012262671,0.57157143,1953.1,1952.2,1.253]
[1773012262853,0.57157143,1953.1,1952.2,2.53359728]
[1773012263263,1.27995084,1953.2,1952.3,0.56993308]
[1773012263576,5.11980339,1953.3,1952.5,0.21391987]
[1773012263742,5.11980339,1953.3,1952.3,5.12190124]
[1773012263743,0.57157143,1952.9,1951.9,0.57093308]
[1773012263939,0.57157143,1953.2,1952.1,0.56993308]
[1773012264749,1.27988532,1953.3,1952.1,0.56993308]
[1773012265140,1.27988532,1953.3,1952.8,0.001]
[1773012265674,1.28186255,1953.4,1952.8,0.001]
[1773012268654,0.002,1953.4,1952.8,0.001]
[1773012268856,0.002,1953.4,1952.8,0.57093308]
[1773012269384,0.57357143,1953.4,1952.8,0.001]
[1773012271481,1.27988532,1953.3,1952.8,0.001]
[1773012271788,0.57157143,1953.2,1952.8,0.001]
[1773012273911,1.82492658,1953.1,1952.8,0.001]
[1773012274202,1.82492658,1953.1,1952.7,0.001]
[1773012277466,0.5449102,1953.0,1952.7,0.001]
[1773012277864,0.5449102,1952.9,1952.7,0.001]
[1773012278090,1.82504686,1953.0,1952.5,0.001]
[1773012278293,1.82504686,1953.0,1952.5,0.002]
[1773012278493,1.82504686,1953.0,1952.5,0.001]
[1773012278494,0.5449102,1952.9,1952.5,0.001]
[1773012278661,0.5449102,1952.9,1952.5,0.002]
[1773012278868,1.28013666,1953.0,1952.0,0.00253886]
[1773012278869,0.5449102,1952.7,1952.0,0.00253886]
[1773012279195,0.5449102,1952.7,1952.1,0.001]
[1773012280097,1.82508667,1952.9,1952.1,0.53835119]
[1773012280284,1.28012598,1953.0,1952.1,0.53835119]
[1773012280589,1.28012598,1953.0,1952.5,0.001]
[1773012280790,1.82503618,1953.0,1952.5,0.001]
[1773012281991,1.8269646,1953.1,1952.5,0.001]
[1773012282297,1.8269646,1953.1,1952.6,0.001]
[1773012282672,0.5449102,1953.0,1952.6,0.001]
[1773012283609,1.2820544,1953.1,1952.6,0.001]
[1773012283794,0.002,1953.1,1952.6,0.53835119]
[1773012283984,0.002,1953.1,1952.7,1.28027858]
[1773012284409,0.002,1953.1,1952.6,5.65952207]
[1773012284410,0.002,1953.1,1952.6,1.81864353]
[1773012285003,0.002,1953.1,1952.6,1.81869479]
[1773012289601,0.002,1953.1,1952.6,1.81769479]
[1773012289807,0.5449102,1953.0,1952.7,0.001]
[1773012289973,0.5449102,1953.0,1952.6,0.001]
[1773012290180,0.002,1953.1,1952.6,0.001]
[1773012291205,1.28008192,1953.0,1952.6,0.001]
[1773012291509,1.82499212,1953.0,1952.6,0.001]
[1773012292428,1.82499212,1953.0,1952.7,0.001]
[1773012294080,0.002,1953.1,1952.8,0.001]
[1773012294614,1.28203157,1953.1,1952.8,0.001]
[1773012294811,0.002,1953.1,1952.8,0.001]
[1773012299432,0.002,1953.1,1952.8,0.53835119]
[1773012300411,0.5469102,1953.1,1952.8,0.001]
[1773012300719,0.002,1953.1,1952.8,0.53735119]
[1773012300918,0.002,1953.2,1952.8,0.53735119]
[1773012301333,0.002,1953.2,1953.0,0.53735119]
[1773012301638,0.5469102,1953.2,1952.7,0.001]
[1773012301820,1.27400801,1953.1,1952.7,1.28127145]
[1773012303140,0.002,1953.2,1952.7,1.28127145]
[1773012303343,0.002,1953.2,1952.9,1.85687074]
[1773012304338,0.002,1953.2,1952.8,1.235]
[1773012304541,0.002,1953.2,1952.8,2.51519778]
[1773012304542,3.1691089,1953.2,1952.8,2.51519778]
[1773012305019,0.002,1953.1,1952.8,2.51519778]
[1773012309647,1.27600801,1953.1,1952.8,2.51519778]
[1773012309950,1.27600801,1953.1,1952.8,3.13921442]
[1773012310446,1.27600801,1953.1,1952.8,2.51519778]
[1773012311263,0.61458008,1953.7,1952.9,0.62401664]
[1773012311446,0.00153886,1954.0,1952.9,0.62401664]
[1773012311447,1.27400801,1953.8,1952.9,0.62401664]
[1773012311615,0.00153886,1954.0,1953.3,0.62401664]
[1773012311946,2.6020909,1954.9,1953.3,0.62401664]
[1773012311947,1.89341787,1954.9,1953.7,0.62401664]
[1773012312148,5.11666923,1955.0,1953.9,0.62401664]
[1773012312149,0.00153886,1955.0,1953.9,0.62401664]
[1773012312320,0.00153886,1955.0,1954.1,0.62401664]
[1773012312521,7.71397045,1955.6,1954.1,0.62401664]
[1773012312522,0.61458008,1955.4,1954.2,2.50955997]
[1773012312720,1.89292952,1955.7,1954.4,0.62401664]
[1773012312931,0.61458008,1955.6,1954.5,2.23114152]
[1773012313245,0.61458008,1955.6,1954.5,1.239]
[1773012313747,0.61458008,1955.6,1954.4,0.62401664]
[1773012313950,0.61458008,1955.4,1954.4,1.86401664]
[1773012314149,0.61458008,1955.0,1954.1,1.86401664]
[1773012314648,0.61458008,1955.0,1954.1,1.24]
[1773012314984,0.61458008,1954.6,1954.0,0.00153886]
[1773012316026,0.61458008,1954.4,1954.0,0.00153886]
[1773012317449,1.27909951,1954.5,1954.0,0.00153886]
[1773012317652,0.61458008,1954.4,1954.0,0.00153886]
[1773012317851,0.61458008,1954.4,1952.8,5.33564698]
[1773012317852,0.61458008,1953.9,1953.1,0.62401664]
[1773012318146,0.61458008,1953.9,1953.1,1.90402935]
[1773012318347,0.61458008,1953.9,1953.2,0.62401664]
[1773012318525,1.27942681,1954.0,1953.2,0.62401664]
[1773012319257,1.89400689,1954.0,1953.2,0.62401664]
[1773012320070,1.89400689,1954.0,1953.2,1.90392625]
[1773012320564,1.89400689,1954.0,1953.2,1.90394052]
[1773012322663,1.89400689,1954.0,1953.2,1.90396169]
[1773012323565,1.89400689,1954.0,1953.3,0.62401664]
[1773012323755,5.11694837,1954.3,1953.3,0.62401664]
[1773012323756,0.61458008,1954.3,1953.3,0.62401664]
[1773012324266,1.8938593,1954.3,1953.5,0.62401664]
[1773012324467,1.27921397,1954.4,1953.5,0.62401664]
[1773012324668,5.11849754,1954.5,1953.7,0.62401664]
[1773012324669,0.002,1954.5,1953.7,0.62401664]
[1773012326365,0.002,1954.5,1953.9,0.62401664]
[1773012326739,0.002,1954.6,1953.9,0.62401664]
[1773012327869,0.61658008,1954.6,1953.9,0.62401664]
[1773012328064,0.61658008,1954.6,1953.6,2.51664701]
[1773012328262,0.61458008,1954.4,1953.6,1.237]
[1773012330855,1.27913412,1954.5,1953.6,0.62401664]
[1773012331158,1.8937142,1954.5,1953.6,0.62401664]
[1773012333062,1.8937142,1954.5,1953.7,1.27962327]
[1773012333377,0.002,1954.3,1953.8,0.62060293]
[1773012333561,0.002,1954.6,1953.9,0.62060293]
[1773012335763,0.002,1954.6,1954.1,0.62060293]
[1773012337160,0.002,1954.6,1953.9,1.27944515]
[1773012337161,0.5684194,1954.5,1953.9,1.27944515]
[1773012337536,0.5684194,1954.5,1953.8,2.51354818]
[1773012337720,1.84758436,1954.4,1953.8,2.51354818]
[1773012338490,1.84758436,1954.4,1953.7,1.27958272]
[1773012338917,0.5684194,1954.3,1953.5,1.27970712]
[1773012339203,0.5684194,1954.3,1953.3,2.51483642]
[1773012339362,0.5684194,1954.3,1953.3,2.51487918]
[1773012339700,1.27929587,1954.2,1953.4,0.62060293]
[1773012339901,0.5684194,1954.3,1953.4,0.62060293]
[1773012340060,1.84767003,1954.3,1953.4,0.62060293]
[1773012340663,0.5684194,1954.2,1953.3,0.001]
[1773012340886,0.5684194,1954.1,1953.3,0.001]
[1773012341877,0.5684194,1953.9,1953.3,0.001]
[1773012342613,5.11770726,1954.1,1953.3,0.62160293]
[1773012342614,1.27939824,1954.1,1953.3,0.62160293]
[1773012342783,0.5684194,1954.2,1953.3,0.62160293]
[1773012343173,1.84772323,1954.2,1953.3,0.62160293]
[1773012343398,0.5684194,1954.2,1953.3,0.62160293]
[1773012343598,1.27927868,1954.3,1953.3,0.62160293]
[1773012344298,5.11680527,1954.4,1953.5,0.62060293]
[1773012344509,5.68522467,1954.4,1953.5,0.62060293]
[1773012346210,0.5684194,1954.3,1953.4,1.2798198]
[1773012346498,0.5684194,1954.1,1953.6,0.001]
[1773012350379,1.27942681,1954.0,1953.6,0.001]
[1773012350595,1.84784621,1954.0,1953.6,0.001]
[1773012350787,0.5684194,1953.9,1953.3,0.001]
[1773012353111,5.11770726,1954.2,1953.4,0.62060293]
[1773012353112,1.27930056,1954.2,1953.4,0.62060293]
[1773012353309,1.84771996,1954.2,1953.4,0.62060293]
[1773012353518,0.5684194,1954.1,1953.4,0.62060293]
[1773012353689,0.5684194,1954.1,1953.3,0.001]
[1773012355425,0.5684194,1953.9,1953.3,0.001]
[1773012357487,1.27955778,1953.8,1953.3,0.001]
[1773012358011,0.5684194,1953.7,1953.3,0.001]
[1773012359509,1.84810817,1953.6,1953.3,0.001]
[1773012360042,0.5684194,1953.5,1953.2,0.001]
[1773012360312,0.5684194,1953.5,1953.4,0.001]
[1773012361806,0.5684194,1953.8,1953.4,0.001]
[1773012362619,0.5684194,1953.8,1953.2,0.001]
[1773012363402,3.26891356,1953.8,1953.2,0.001]
[1773012363593,3.9002227,1953.9,1953.3,1.27988532]
[1773012363594,1.8554334,1953.9,1953.3,1.27988532]
[1773012364310,0.57591629,1953.9,1953.3,1.27988532]
[1773012364712,0.57591629,1953.9,1953.3,1.83586378]
[1773012364921,0.57591629,1953.8,1953.3,1.27988532]
[1773012366116,1.85534506,1954.0,1953.3,0.55597846]
[1773012368131,0.59668308,1954.2,1953.4,1.2798198]
[1773012368331,0.59468308,1954.1,1953.4,1.2798198]
[1773012368549,0.59468308,1954.1,1953.3,1.27983344]
[1773012368703,0.59468308,1954.1,1953.4,0.55246211]
[1773012369301,0.59468308,1953.9,1953.2,0.001]
[1773012369650,0.59468308,1953.8,1953.2,0.001]
[1773012370148,1.27962327,1953.7,1953.2,0.001]
[1773012370326,0.59468308,1953.6,1953.2,0.001]
[1773012370715,1.87419172,1953.9,1953.2,0.55346211]